{"text_format":"3","workbook":"xlsx","n_sheets":2,"sheets":["list","data"],"not_rendered":{"external_links":2,"defined_names":8},"read":"whole","date_system":"1900"}

{"sheet":"list","index":0,"n_rows":179,"n_cols":14,"rows_kept":179}
["№","Фамилия","Имя","Отчество","Пол","Участник с ОВЗ","Класс","Класс участия","Балл","Макс. Балл","Статус","Призер МЭ прошлого года","Учитель","Место работы учителя"]
[1,"Клипова  ","Екатерина ","Сергеевна","ж","нет",4,4,30,35,"победитель",null,"Конева Валентина Викторовна",{"$f":"list!$N$6","v":"Муниципальное бюджетное общеобразовательное учреждение \"Многопрофильный лицей №37\" Нижнекамского муниципального района Республики Татарстан"}]
[2,"Мустаева ","Арина ","Тимуровна","ж","нет",4,4,19,35,"призер",null,"Конева Валентина Викторовна",{"$f":"list!$N$6","v":"Муниципальное бюджетное общеобразовательное учреждение \"Многопрофильный лицей №37\" Нижнекамского муниципального района Республики Татарстан"}]
[3,{"$f":"[1]list!C3","v":"Мулюкова"},{"$f":"[1]list!D3","v":"Лиана"},{"$f":"[1]list!E3","v":"Алмазовна"},{"$f":"[1]list!F3","v":"ж"},{"$f":"[1]list!H3","v":"нет"},{"$f":"[1]list!I3","v":4},{"$f":"[1]list!J3","v":4},18,{"$f":"[1]list!L3","v":35},"призер",null,{"$f":"[1]list!O3","v":"Гильманова Ляйля Мукатдасовна"},{"$f":"list!$N$6","v":"Муниципальное бюджетное общеобразовательное учреждение \"Многопрофильный лицей №37\" Нижнекамского муниципального района Республики Татарстан"}]
[4,"Мингалимова","Эмилия","Линаровна","ж","нет",4,4,18,35,"призер",null,"Корноухова Светлана Васильевна",{"$f":"list!$N$6","v":"Муниципальное бюджетное общеобразовательное учреждение \"Многопрофильный лицей №37\" Нижнекамского муниципального района Республики Татарстан"}]
[5,{"$f":"[1]list!C4","v":"Яруллина"},{"$f":"[1]list!D4","v":"Самира"},{"$f":"[1]list!E4","v":"Ирековна"},{"$f":"[1]list!F4","v":"ж"},{"$f":"[1]list!H4","v":"нет"},{"$f":"[1]list!I4","v":4},{"$f":"[1]list!J4","v":4},{"$f":"[1]list!K4","v":14},{"$f":"[1]list!L4","v":35},"участник",null,{"$f":"[1]list!O4","v":"Гильманова Ляйля Мукатдасовна"},{"$f":"[1]list!P4","v":"Муниципальное бюджетное общеобразовательное учреждение \"Многопрофильный лицей №37\" Нижнекамского муниципального района Республики Татарстан"}]
[6,"Валиев ","Ильназ","Айдарович","м","нет",4,4,14,35,"участник",null,"Корноухова Светлана Васильевна",{"$f":"$N$6","v":"Муниципальное бюджетное общеобразовательное учреждение \"Многопрофильный лицей №37\" Нижнекамского муниципального района Республики Татарстан"}]
[7,{"$f":"[1]list!C5","v":"Басирова"},{"$f":"[1]list!D5","v":"Эмилия"},{"$f":"[1]list!E5","v":"Марселевна"},{"$f":"[1]list!F5","v":"ж"},{"$f":"[1]list!H5","v":"нет"},{"$f":"[1]list!I5","v":4},{"$f":"[1]list!J5","v":4},{"$f":"[1]list!K5","v":13},{"$f":"[1]list!L5","v":35},"участник",null,{"$f":"[1]list!O5","v":"Гильманова Ляйля Мукатдасовна"},{"$f":"[1]list!P5","v":"Муниципальное бюджетное общеобразовательное учреждение \"Многопрофильный лицей №37\" Нижнекамского муниципального района Республики Татарстан"}]
[8,{"$f":"[1]list!C6","v":"Байкеева"},{"$f":"[1]list!D6","v":"Ралина"},{"$f":"[1]list!E6","v":"Руслановна"},{"$f":"[1]list!F6","v":"ж"},{"$f":"[1]list!H6","v":"нет"},{"$f":"[1]list!I6","v":4},{"$f":"[1]list!J6","v":4},{"$f":"[1]list!K6","v":11},{"$f":"[1]list!L6","v":35},"участник",null,{"$f":"[1]list!O6","v":"Гильманова Ляйля Мукатдасовна"},{"$f":"[1]list!P6","v":"Муниципальное бюджетное общеобразовательное учреждение \"Многопрофильный лицей №37\" Нижнекамского муниципального района Республики Татарстан"}]
[9,"Калмыкова ","Мирослава","Юрьевна","ж","нет",4,4,11,35,"участник",null,"Корноухова Светлана Васильевна",{"$f":"$N$6","v":"Муниципальное бюджетное общеобразовательное учреждение \"Многопрофильный лицей №37\" Нижнекамского муниципального района Республики Татарстан"}]
[10,{"$f":"[1]list!C7","v":"Салахова"},{"$f":"[1]list!D7","v":"Ясмина"},{"$f":"[1]list!E7","v":"Ренатовна"},{"$f":"[1]list!F7","v":"ж"},{"$f":"[1]list!H7","v":"нет"},{"$f":"[1]list!I7","v":4},{"$f":"[1]list!J7","v":4},{"$f":"[1]list!K7","v":11},{"$f":"[1]list!L7","v":35},"участник",null,{"$f":"[1]list!O7","v":"Гильманова Ляйля Мукатдасовна"},"Муниципальное бюджетное общеобразовательное учреждение \"Многопрофильный лицей №37\" Нижнекамского муниципального района Республики Татарстан"]
[11,{"$f":"[1]list!C8","v":"Ярмиев"},{"$f":"[1]list!D8","v":"Рамазан"},{"$f":"[1]list!E8","v":"Атласович"},{"$f":"[1]list!F8","v":"м"},{"$f":"[1]list!H8","v":"нет"},{"$f":"[1]list!I8","v":4},{"$f":"[1]list!J8","v":4},{"$f":"[1]list!K8","v":10},{"$f":"[1]list!L8","v":35},"участник",null,{"$f":"[1]list!O8","v":"Гильманова Ляйля Мукатдасовна"},"Муниципальное бюджетное общеобразовательное учреждение \"Многопрофильный лицей №37\" Нижнекамского муниципального района Республики Татарстан"]
[12,"Ибатуллина ","Аделина","Ильнаровна","ж","нет",4,4,10,35,"участник",null,"Хаметова Рамиля Раилевна","Муниципальное бюджетное общеобразовательное учреждение \"Многопрофильный лицей №37\" Нижнекамского муниципального района Республики Татарстан"]
[13,"Нигматуллина"," Марьям ","Ренатовна","ж","нет",4,4,10,35,"участник",null,"Конева Валентина Викторовна","Муниципальное бюджетное общеобразовательное учреждение \"Многопрофильный лицей №37\" Нижнекамского муниципального района Республики Татарстан"]
[14,"Мусин ","Марат ","Рустемович","м","нет",4,4,10,35,"участник",null,"Конева Валентина Викторовна","Муниципальное бюджетное общеобразовательное учреждение \"Многопрофильный лицей №37\" Нижнекамского муниципального района Республики Татарстан"]
[15,"Наполова ","Валентина  ","Сергеевна","ж","нет",4,4,10,35,"участник",null,"Конева Валентина Викторовна","Муниципальное бюджетное общеобразовательное учреждение \"Многопрофильный лицей №37\" Нижнекамского муниципального района Республики Татарстан"]
[16,"Гарипов ","Раяз ","Рамисович","м","нет",4,4,10,35,"участник",null,"Конева Валентина Викторовна","Муниципальное бюджетное общеобразовательное учреждение \"Многопрофильный лицей №37\" Нижнекамского муниципального района Республики Татарстан"]
[17,"Мубаракшин","Динар","Рустемович","м","нет",4,4,9,35,"участник",null,"Хаметова Рамиля Раилевна","Муниципальное бюджетное общеобразовательное учреждение \"Многопрофильный лицей №37\" Нижнекамского муниципального района Республики Татарстан"]
[18,{"$f":"[1]list!C9","v":"Сабитова"},{"$f":"[1]list!D9","v":"Сафина"},{"$f":"[1]list!E9","v":"Ильнуровна"},{"$f":"[1]list!F9","v":"ж"},{"$f":"[1]list!H9","v":"нет"},{"$f":"[1]list!I9","v":4},{"$f":"[1]list!J9","v":4},{"$f":"[1]list!K9","v":9},{"$f":"[1]list!L9","v":35},"участник",null,{"$f":"[1]list!O9","v":"Гильманова Ляйля Мукатдасовна"},"Муниципальное бюджетное общеобразовательное учреждение \"Многопрофильный лицей №37\" Нижнекамского муниципального района Республики Татарстан"]
[19,{"$f":"[1]list!C10","v":"Габдуллин"},{"$f":"[1]list!D10","v":"Данил"},{"$f":"[1]list!E10","v":"Ильназович"},{"$f":"[1]list!F10","v":"м"},{"$f":"[1]list!H10","v":"нет"},{"$f":"[1]list!I10","v":4},{"$f":"[1]list!J10","v":4},{"$f":"[1]list!K10","v":8},{"$f":"[1]list!L10","v":35},"участник",null,{"$f":"[1]list!O10","v":"Гильманова Ляйля Мукатдасовна"},"Муниципальное бюджетное общеобразовательное учреждение \"Многопрофильный лицей №37\" Нижнекамского муниципального района Республики Татарстан"]
[20,{"$f":"[1]list!C11","v":"Шайхелмарданов"},{"$f":"[1]list!D11","v":"Амир"},{"$f":"[1]list!E11","v":"Рамелевич"},{"$f":"[1]list!F11","v":"м"},{"$f":"[1]list!H11","v":"нет"},{"$f":"[1]list!I11","v":4},{"$f":"[1]list!J11","v":4},{"$f":"[1]list!K11","v":7},{"$f":"[1]list!L11","v":35},"участник",null,{"$f":"[1]list!O11","v":"Гильманова Ляйля Мукатдасовна"},"Муниципальное бюджетное общеобразовательное учреждение \"Многопрофильный лицей №37\" Нижнекамского муниципального района Республики Татарстан"]
[21,"Исламхузина","Самира","Ильназовна","ж","нет",4,4,6,35,"участник",null,"Конева Валентина Викторовна","Муниципальное бюджетное общеобразовательное учреждение \"Многопрофильный лицей №37\" Нижнекамского муниципального района Республики Татарстан"]
[22,"Ташкина ","София ","Михайловна ","ж","нет",4,4,6,35,"участник",null,"Хамадеева Гузель Камилевна","Муниципальное бюджетное общеобразовательное учреждение \"Многопрофильный лицей №37\" Нижнекамского муниципального района Республики Татарстан"]
[23,"Яфарова ","Камилла ","Марсовна","ж","нет",4,4,6,35,"участник",null,"Хамадеева Гузель Камилевна","Муниципальное бюджетное общеобразовательное учреждение \"Многопрофильный лицей №37\" Нижнекамского муниципального района Республики Татарстан"]
[24,"Корчик ","Демид ","Денисович","м","нет",4,4,5,35,"участник",null,"Конева Валентина Викторовна",{"$f":"$N$6","v":"Муниципальное бюджетное общеобразовательное учреждение \"Многопрофильный лицей №37\" Нижнекамского муниципального района Республики Татарстан"}]
[25,"Семёнов ","Артём ","Константинович","м","нет",4,4,5,35,"участник",null,"Конева Валентина Викторовна","Муниципальное бюджетное общеобразовательное учреждение \"Многопрофильный лицей №37\" Нижнекамского муниципального района Республики Татарстан"]
[26,"Спасенкина","Валерия","Алекандровна","ж","нет",4,4,5,35,"участник",null,"Хаметова Рамиля Раилевна","Муниципальное бюджетное общеобразовательное учреждение \"Многопрофильный лицей №37\" Нижнекамского муниципального района Республики Татарстан"]
[27,"Шавалеева","Диляра","Ильназовна","ж","нет",4,4,5,35,"участник",null,"Гильманова Ляйля Мукатдасовна","Муниципальное бюджетное общеобразовательное учреждение \"Многопрофильный лицей №37\" Нижнекамского муниципального района Республики Татарстан"]
[28,"Гайнуллин ","Рифат"," Русланович","м","нет",4,4,4,35,"участник",null,"Конева Валентина Викторовна","Муниципальное бюджетное общеобразовательное учреждение \"Многопрофильный лицей №37\" Нижнекамского муниципального района Республики Татарстан"]
[29,"Ибрагимов ","Амир ","Азатович","м","нет",4,4,4,35,"участник",null,"Конева Валентина Викторовна","Муниципальное бюджетное общеобразовательное учреждение \"Многопрофильный лицей №37\" Нижнекамского муниципального района Республики Татарстан"]
[30,"Николаев","Артур","Михайлович","м","нет",4,4,4,35,"участник",null,"Хаметова Рамиля Раилевна","Муниципальное бюджетное общеобразовательное учреждение \"Многопрофильный лицей №37\" Нижнекамского муниципального района Республики Татарстан"]
[31,"Ахунова ","Каролина ","Эльвировна","ж","нет",4,4,4,35,"участник",null,"Хамадеева Гузель Камилевна","Муниципальное бюджетное общеобразовательное учреждение \"Многопрофильный лицей №37\" Нижнекамского муниципального района Республики Татарстан"]
[32,"Абдуллина ","Эмилия","Эльмаровна","ж","нет",4,4,3,35,"участник",null,"Корноухова Светлана Васильевна","Муниципальное бюджетное общеобразовательное учреждение \"Многопрофильный лицей №37\" Нижнекамского муниципального района Республики Татарстан"]
[33,"Киямова","Аиша","Руслановна","ж","нет",4,4,2,35,"участник",null,"Хаметова Рамиля Раилевна","Муниципальное бюджетное общеобразовательное учреждение \"Многопрофильный лицей №37\" Нижнекамского муниципального района Республики Татарстан"]
[34," Давлетова","Вероника","Денисовна","ж","нет",4,4,2,35,"участник",null,"Хаметова Рамиля Раилевна","Муниципальное бюджетное общеобразовательное учреждение \"Многопрофильный лицей №37\" Нижнекамского муниципального района Республики Татарстан"]
[35,"Сатдарова","Амелия","Ивановна","ж","нет",4,4,2,35,"участник",null,"Хаметова Рамиля Раилевна","Муниципальное бюджетное общеобразовательное учреждение \"Многопрофильный лицей №37\" Нижнекамского муниципального района Республики Татарстан"]
[36,"Бабаев ","Иван ","Андреевич","м","нет",4,4,2,35,"участник",null,"Хамадеева Гузель Камилевна","Муниципальное бюджетное общеобразовательное учреждение \"Многопрофильный лицей №37\" Нижнекамского муниципального района Республики Татарстан"]
[37,"Сабирзянов ","Ренат ","Ленарович","м","нет",4,4,1,35,"участник",null,"Хамадеева Гузель Камилевна","Муниципальное бюджетное общеобразовательное учреждение \"Многопрофильный лицей №37\" Нижнекамского муниципального района Республики Татарстан"]
[38," Федонин","Ярослав","Алексеевичм","м","нет",4,4,1,35,"участник",null,"Хаметова Рамиля Раилевна","Муниципальное бюджетное общеобразовательное учреждение \"Многопрофильный лицей №37\" Нижнекамского муниципального района Республики Татарстан"]
[39,"Фёдорова ","Алиса"," Павловна","ж","нет",4,4,1,35,"участник",null,"Конева Валентина Викторовна","Муниципальное бюджетное общеобразовательное учреждение \"Многопрофильный лицей №37\" Нижнекамского муниципального района Республики Татарстан"]
[40,"Шиншакова","Елизавета","Евгеньевна","ж","нет",4,4,1,35,"участник",null,"Хаметова Рамиля Раилевна","Муниципальное бюджетное общеобразовательное учреждение \"Многопрофильный лицей №37\" Нижнекамского муниципального района Республики Татарстан"]
[41,"Хамидуллин","Карим","Айратович","м","нет",5,5,31,37,"победитель",null,"Воловикова Татьяна Ивановна",{"$f":"list!$N$6","v":"Муниципальное бюджетное общеобразовательное учреждение \"Многопрофильный лицей №37\" Нижнекамского муниципального района Республики Татарстан"}]
[42,"Куркова ","Дарья","Алексеевна","ж","нет",5,5,23,37,"призер",null,"Чумакова Елена Валерьевна",{"$f":"list!$N$6","v":"Муниципальное бюджетное общеобразовательное учреждение \"Многопрофильный лицей №37\" Нижнекамского муниципального района Республики Татарстан"}]
[43,"Карликова","Дарья","Михайловна ","ж","нет",5,5,20,37,"призер",null,"Воловикова Татьяна Ивановна",{"$f":"list!$N$6","v":"Муниципальное бюджетное общеобразовательное учреждение \"Многопрофильный лицей №37\" Нижнекамского муниципального района Республики Татарстан"}]
[44,"Павлова","Диана","Павловна","ж","нет",5,5,6,37,"участник",null,"Чумакова Елена Валерьевна",{"$f":"list!$N$6","v":"Муниципальное бюджетное общеобразовательное учреждение \"Многопрофильный лицей №37\" Нижнекамского муниципального района Республики Татарстан"}]
[45,"Иванова","Карина","Александровна","ж","нет",5,5,6,37,"участник",null,"Воловикова Татьяна Ивановна",{"$f":"list!$N$6","v":"Муниципальное бюджетное общеобразовательное учреждение \"Многопрофильный лицей №37\" Нижнекамского муниципального района Республики Татарстан"}]
[46,"Власенко","Егор","Андреевич","м","нет",5,5,5,37,"участник",null,"Чумакова Елена Валерьевна",{"$f":"list!$N$6","v":"Муниципальное бюджетное общеобразовательное учреждение \"Многопрофильный лицей №37\" Нижнекамского муниципального района Республики Татарстан"}]
[47,"Мухаметзянова","Лиана","Искандеровна","ж","нет",5,5,5,37,"участник",null,"Воловикова Татьяна Ивановна",{"$f":"list!$N$6","v":"Муниципальное бюджетное общеобразовательное учреждение \"Многопрофильный лицей №37\" Нижнекамского муниципального района Республики Татарстан"}]
[48,"Сафарханов","Рустем","Ильсурович","м","нет",5,5,5,37,"участник",null,"Чумакова Елена Валерьевна",{"$f":"list!$N$6","v":"Муниципальное бюджетное общеобразовательное учреждение \"Многопрофильный лицей №37\" Нижнекамского муниципального района Республики Татарстан"}]
[49,"Трошина","Ева","Дмитриевна","ж","нет",5,5,4,37,"участник",null,"Воловикова Татьяна Ивановна",{"$f":"list!$N$6","v":"Муниципальное бюджетное общеобразовательное учреждение \"Многопрофильный лицей №37\" Нижнекамского муниципального района Республики Татарстан"}]
[50,"Латыпова","Ралина","Ришатовна","ж","нет",5,5,4,37,"участник",null,"Воловикова Татьяна Ивановна",{"$f":"list!$N$6","v":"Муниципальное бюджетное общеобразовательное учреждение \"Многопрофильный лицей №37\" Нижнекамского муниципального района Республики Татарстан"}]
[51,"Яруллина","Ренара","Юлдашевна","ж","нет",5,5,4,37,"участник",null,"Воловикова Татьяна Ивановна",{"$f":"list!$N$6","v":"Муниципальное бюджетное общеобразовательное учреждение \"Многопрофильный лицей №37\" Нижнекамского муниципального района Республики Татарстан"}]
[52,"Андреев ","Булат","Эдуардович","м","нет",5,5,4,37,"участник",null,"Воловикова Татьяна Ивановна",{"$f":"list!$N$6","v":"Муниципальное бюджетное общеобразовательное учреждение \"Многопрофильный лицей №37\" Нижнекамского муниципального района Республики Татарстан"}]
[53,"Латыпов","Дамир","Марселевич","м","нет",5,5,3,37,"участник",null,"Васильева Алевтина Павловна",{"$f":"list!$N$6","v":"Муниципальное бюджетное общеобразовательное учреждение \"Многопрофильный лицей №37\" Нижнекамского муниципального района Республики Татарстан"}]
[54,"Юнусов","Алмаз","Рустемович","м","нет",5,5,3,37,"участник",null,"Васильева Алевтина Павловна",{"$f":"list!$N$6","v":"Муниципальное бюджетное общеобразовательное учреждение \"Многопрофильный лицей №37\" Нижнекамского муниципального района Республики Татарстан"}]
[55,"Мухаметшин","Дамир","Ринатович","м","нет",5,5,3,37,"участник",null,"Галимова Алия Альбертовна",{"$f":"list!$N$6","v":"Муниципальное бюджетное общеобразовательное учреждение \"Многопрофильный лицей №37\" Нижнекамского муниципального района Республики Татарстан"}]
[56,"Курьин","Артём ","Андреевич","м","нет",5,5,3,37,"участник",null,"Чумакова Елена Валерьевна",{"$f":"list!$N$6","v":"Муниципальное бюджетное общеобразовательное учреждение \"Многопрофильный лицей №37\" Нижнекамского муниципального района Республики Татарстан"}]
[57,"Васильева","Дарина","Владимировна","ж","нет",5,5,3,37,"участник",null,"Галимова Алия Альбертовна",{"$f":"list!$N$6","v":"Муниципальное бюджетное общеобразовательное учреждение \"Многопрофильный лицей №37\" Нижнекамского муниципального района Республики Татарстан"}]
[58,"Шайхутдинова","Аделина","Руслановна","ж","нет",5,5,3,37,"участник",null,"Воловикова Татьяна Ивановна",{"$f":"list!$N$6","v":"Муниципальное бюджетное общеобразовательное учреждение \"Многопрофильный лицей №37\" Нижнекамского муниципального района Республики Татарстан"}]
[59,"Зайнуллин","Никита","Артурович","м","нет",5,5,3,37,"участник",null,"Галимова Алия Альбертовна",{"$f":"list!$N$6","v":"Муниципальное бюджетное общеобразовательное учреждение \"Многопрофильный лицей №37\" Нижнекамского муниципального района Республики Татарстан"}]
[60,"Шагидуллина","Амина","Ильдаровна","ж","нет",5,5,3,37,"участник",null,"Воловикова Татьяна Ивановна",{"$f":"list!$N$6","v":"Муниципальное бюджетное общеобразовательное учреждение \"Многопрофильный лицей №37\" Нижнекамского муниципального района Республики Татарстан"}]
[61,"Буланов","Владислав","Алексеевич","м","нет",5,5,3,37,"участник",null,"Воловикова Татьяна Ивановна",{"$f":"list!$N$6","v":"Муниципальное бюджетное общеобразовательное учреждение \"Многопрофильный лицей №37\" Нижнекамского муниципального района Республики Татарстан"}]
[62,"Ибашаев","Олег","Евгеньевич","м","нет",5,5,3,37,"участник",null,"Воловикова Татьяна Ивановна",{"$f":"list!$N$6","v":"Муниципальное бюджетное общеобразовательное учреждение \"Многопрофильный лицей №37\" Нижнекамского муниципального района Республики Татарстан"}]
[63,"Кузьмин","Богдан","Владиславович","м","нет",5,5,2,37,"участник",null,"Васильева Алевтина Павловна",{"$f":"list!$N$6","v":"Муниципальное бюджетное общеобразовательное учреждение \"Многопрофильный лицей №37\" Нижнекамского муниципального района Республики Татарстан"}]
[64,"Матросова","Виктория","Олеговна","ж","нет",5,5,2,37,"участник",null,"Васильева Алевтина Павловна",{"$f":"list!$N$6","v":"Муниципальное бюджетное общеобразовательное учреждение \"Многопрофильный лицей №37\" Нижнекамского муниципального района Республики Татарстан"}]
[65,"Ульданова","Наиля ","Ниязовна","ж","нет",5,5,2,37,"участник",null,"Галимова Алия Альбертовна",{"$f":"list!$N$6","v":"Муниципальное бюджетное общеобразовательное учреждение \"Многопрофильный лицей №37\" Нижнекамского муниципального района Республики Татарстан"}]
[66,"Файзуллин","Данил","Линарович","м","нет",5,5,2,37,"участник",null,"Галимова Алия Альбертовна",{"$f":"list!$N$6","v":"Муниципальное бюджетное общеобразовательное учреждение \"Многопрофильный лицей №37\" Нижнекамского муниципального района Республики Татарстан"}]
[67,"Михайлов","Серафим","Сергеевич","м","нет",5,5,2,37,"участник",null,"Чумакова Елена Валерьевна",{"$f":"list!$N$6","v":"Муниципальное бюджетное общеобразовательное учреждение \"Многопрофильный лицей №37\" Нижнекамского муниципального района Республики Татарстан"}]
[68,"Смолин","Михаил","Николаевич","м","нет",5,5,2,37,"участник",null,"Воловикова Татьяна Ивановна",{"$f":"list!$N$6","v":"Муниципальное бюджетное общеобразовательное учреждение \"Многопрофильный лицей №37\" Нижнекамского муниципального района Республики Татарстан"}]
[69,"Вахитова","Риана","Ильдаровна","ж","нет",5,5,2,37,"участник",null,"Чумакова Елена Валерьевна",{"$f":"list!$N$6","v":"Муниципальное бюджетное общеобразовательное учреждение \"Многопрофильный лицей №37\" Нижнекамского муниципального района Республики Татарстан"}]
[70,"Залаев","Арслан","Айратович","м","нет",5,5,2,37,"участник",null,"Охотникова Анжела Евгеньевна",{"$f":"list!$N$6","v":"Муниципальное бюджетное общеобразовательное учреждение \"Многопрофильный лицей №37\" Нижнекамского муниципального района Республики Татарстан"}]
[71,"Ахметжанова","Лейла","Разумовна","ж","нет",6,6,33,37,"победитель",null,"Гайнуллина Миляуша Линаровна",{"$f":"list!$N$6","v":"Муниципальное бюджетное общеобразовательное учреждение \"Многопрофильный лицей №37\" Нижнекамского муниципального района Республики Татарстан"}]
[72,"Хуснутдинова","Камила","Маратовна","ж","нет",6,6,21,37,"призер",null,"Гайнуллина Миляуша Линаровна",{"$f":"list!$N$6","v":"Муниципальное бюджетное общеобразовательное учреждение \"Многопрофильный лицей №37\" Нижнекамского муниципального района Республики Татарстан"}]
[73,"Каримова","Аделина ","Ильфаровна","ж","нет",6,6,19,37,"участник",null,"Гайнуллина Миляуша Линаровна",{"$f":"list!$N$6","v":"Муниципальное бюджетное общеобразовательное учреждение \"Многопрофильный лицей №37\" Нижнекамского муниципального района Республики Татарстан"}]
[74,"Гайнутдинова","Динара","Дамировна","ж","нет",6,6,18,37,"участник",null,"Гайнуллина Миляуша Линаровна",{"$f":"list!$N$6","v":"Муниципальное бюджетное общеобразовательное учреждение \"Многопрофильный лицей №37\" Нижнекамского муниципального района Республики Татарстан"}]
[75,"Хусаинова","София ","Марселевна","ж","нет",6,6,16,37,"участник",null,"Гайнуллина Миляуша Линаровна",{"$f":"list!$N$6","v":"Муниципальное бюджетное общеобразовательное учреждение \"Многопрофильный лицей №37\" Нижнекамского муниципального района Республики Татарстан"}]
[76,"Минагазова","Зарина","Рамилевна","ж","нет",6,6,12,37,"участник",null,"Гайнуллина Миляуша Линаровна",{"$f":"list!$N$6","v":"Муниципальное бюджетное общеобразовательное учреждение \"Многопрофильный лицей №37\" Нижнекамского муниципального района Республики Татарстан"}]
[77,"Бичеева","София","Рафаэлевна","ж","нет",6,6,10,37,"участник",null,"Хазипова Ильмира Нургалиевна",{"$f":"list!$N$6","v":"Муниципальное бюджетное общеобразовательное учреждение \"Многопрофильный лицей №37\" Нижнекамского муниципального района Республики Татарстан"}]
[78,"Плотникова","Валерия"," Григорьевна","ж","нет",6,6,10,37,"участник",null,"Гайнуллина Миляуша Линаровна",{"$f":"list!$N$6","v":"Муниципальное бюджетное общеобразовательное учреждение \"Многопрофильный лицей №37\" Нижнекамского муниципального района Республики Татарстан"}]
[79,"Кузьмина","Арина ","Андреевна","ж","нет",6,6,9,37,"участник",null,"Макарова Эльвира Наилевна",{"$f":"list!$N$6","v":"Муниципальное бюджетное общеобразовательное учреждение \"Многопрофильный лицей №37\" Нижнекамского муниципального района Республики Татарстан"}]
[80,"Миннеханова","Лина","Ирековна","ж","нет",6,6,9,37,"участник",null,"Макарова Эльвира Наилевна",{"$f":"list!$N$6","v":"Муниципальное бюджетное общеобразовательное учреждение \"Многопрофильный лицей №37\" Нижнекамского муниципального района Республики Татарстан"}]
[81,"Мухаметдинова","Кира","Ленаровна","ж","нет",6,6,8,37,"участник",null,"Хазипова Ильмира Нургалиевна",{"$f":"list!$N$6","v":"Муниципальное бюджетное общеобразовательное учреждение \"Многопрофильный лицей №37\" Нижнекамского муниципального района Республики Татарстан"}]
[82,"Никитин","Михаил","Владимирович","м","нет",6,6,8,37,"участник",null,"Макарова Эльвира Наилевна",{"$f":"list!$N$6","v":"Муниципальное бюджетное общеобразовательное учреждение \"Многопрофильный лицей №37\" Нижнекамского муниципального района Республики Татарстан"}]
[83,"Ильмухина","Марьяна","Игоревна","ж","нет",6,6,7,37,"участник",null,"Макарова Эльвира Наилевна",{"$f":"list!$N$6","v":"Муниципальное бюджетное общеобразовательное учреждение \"Многопрофильный лицей №37\" Нижнекамского муниципального района Республики Татарстан"}]
[84,"Гильмуллина","Айсылу","Ильнуровна","ж","нет",6,6,7,37,"участник",null,"Хазипова Ильмира Нургалиевна",{"$f":"list!$N$6","v":"Муниципальное бюджетное общеобразовательное учреждение \"Многопрофильный лицей №37\" Нижнекамского муниципального района Республики Татарстан"}]
[85,"Саитова","Динара","Эдуардовна","ж","нет",6,6,7,37,"участник",null,"Гайнуллина Миляуша Линаровна",{"$f":"list!$N$6","v":"Муниципальное бюджетное общеобразовательное учреждение \"Многопрофильный лицей №37\" Нижнекамского муниципального района Республики Татарстан"}]
[86,"Мельникова","Лейла","Александровна","ж","нет",6,6,6,37,"участник",null,"Макарова Эльвира Наилевна",{"$f":"list!$N$6","v":"Муниципальное бюджетное общеобразовательное учреждение \"Многопрофильный лицей №37\" Нижнекамского муниципального района Республики Татарстан"}]
[87,"Становова","Дарья"," Евгеньевна","ж","нет",6,6,6,37,"участник",null,"Гайнуллина Миляуша Линаровна",{"$f":"list!$N$6","v":"Муниципальное бюджетное общеобразовательное учреждение \"Многопрофильный лицей №37\" Нижнекамского муниципального района Республики Татарстан"}]
[88,"Чумакова","Милена","Всеволодовна","ж","нет",6,6,5,37,"участник",null,"Хазипова Ильмира Нургалиевна",{"$f":"list!$N$6","v":"Муниципальное бюджетное общеобразовательное учреждение \"Многопрофильный лицей №37\" Нижнекамского муниципального района Республики Татарстан"}]
[89,"Ахметов","Азат","Алмазович","м","нет",6,6,5,37,"участник",null,"Гайнуллина Миляуша Линаровна",{"$f":"list!$N$6","v":"Муниципальное бюджетное общеобразовательное учреждение \"Многопрофильный лицей №37\" Нижнекамского муниципального района Республики Татарстан"}]
[90,"Черемисина","София ","Андрееевна","ж","нет",6,6,4,37,"участник",null,"Гайнуллина Миляуша Линаровна",{"$f":"list!$N$6","v":"Муниципальное бюджетное общеобразовательное учреждение \"Многопрофильный лицей №37\" Нижнекамского муниципального района Республики Татарстан"}]
[91,"Байрашова","Софья ","Владимировна","ж","нет",6,6,4,37,"участник",null,"Хазипова Ильмира Нургалиевна",{"$f":"list!$N$6","v":"Муниципальное бюджетное общеобразовательное учреждение \"Многопрофильный лицей №37\" Нижнекамского муниципального района Республики Татарстан"}]
[92,"Ильясов","Тимур","Айдарович","м","нет",6,6,4,37,"участник",null,"Хазипова Ильмира Нургалиевна",{"$f":"list!$N$6","v":"Муниципальное бюджетное общеобразовательное учреждение \"Многопрофильный лицей №37\" Нижнекамского муниципального района Республики Татарстан"}]
[93,"Кашапова","Диляра","Рафаэлевна","ж","нет",6,6,4,37,"участник",null,"Макарова Эльвира Наилевна",{"$f":"list!$N$6","v":"Муниципальное бюджетное общеобразовательное учреждение \"Многопрофильный лицей №37\" Нижнекамского муниципального района Республики Татарстан"}]
[94,"Панадий","Сергей","Дмитриевич","м","нет",6,6,4,37,"участник",null,"Хазипова Ильмира Нургалиевна",{"$f":"list!$N$6","v":"Муниципальное бюджетное общеобразовательное учреждение \"Многопрофильный лицей №37\" Нижнекамского муниципального района Республики Татарстан"}]
[95,"Рахматуллин","Ильгиз","Ильнурович","м","нет",6,6,3,37,"участник",null,"Макарова Эльвира Наилевна",{"$f":"list!$N$6","v":"Муниципальное бюджетное общеобразовательное учреждение \"Многопрофильный лицей №37\" Нижнекамского муниципального района Республики Татарстан"}]
[96,"Зайцева","Рита","Юрьевна","ж","нет",6,6,1,37,"участник",null,"Макарова Эльвира Наилевна",{"$f":"list!$N$6","v":"Муниципальное бюджетное общеобразовательное учреждение \"Многопрофильный лицей №37\" Нижнекамского муниципального района Республики Татарстан"}]
[97,"Ханнанова","Дарина","Альбертовна","ж","нет",7,7,39,43,"победитель",null,"Охотникова Анжела Евгеньевна",{"$f":"list!$N$6","v":"Муниципальное бюджетное общеобразовательное учреждение \"Многопрофильный лицей №37\" Нижнекамского муниципального района Республики Татарстан"}]
[98,"Бусыгина","Анна","Алексеевна","ж","нет",7,7,36,43,"призер",null,"Охотникова Анжела Евгеньевна",{"$f":"list!$N$6","v":"Муниципальное бюджетное общеобразовательное учреждение \"Многопрофильный лицей №37\" Нижнекамского муниципального района Республики Татарстан"}]
[99,"Шандренкова ","Анастасия","Александровна","ж","нет",7,7,36,42,"призер",null,"Макарова Эльвира Наилевна",{"$f":"list!$N$6","v":"Муниципальное бюджетное общеобразовательное учреждение \"Многопрофильный лицей №37\" Нижнекамского муниципального района Республики Татарстан"}]
[100,"Демидова","Ксения","Александровна","ж","нет",7,7,30,43,"участник",null,"Охотникова Анжела Евгеньевна",{"$f":"list!$N$6","v":"Муниципальное бюджетное общеобразовательное учреждение \"Многопрофильный лицей №37\" Нижнекамского муниципального района Республики Татарстан"}]
[101,"Музафарова","Милана","Раилевна","ж","нет",7,7,30,43,"участник",null,"Макарова Эльвира Наилевна",{"$f":"list!$N$6","v":"Муниципальное бюджетное общеобразовательное учреждение \"Многопрофильный лицей №37\" Нижнекамского муниципального района Республики Татарстан"}]
[102,"Галимова","Гульназ","Ильназовна","ж","нет",7,7,30,43,"участник",null,"Охотникова Анжела Евгеньевна",{"$f":"list!$N$6","v":"Муниципальное бюджетное общеобразовательное учреждение \"Многопрофильный лицей №37\" Нижнекамского муниципального района Республики Татарстан"}]
[103,"Натфуллина","Альбина","Ильшатовна","ж","нет",7,7,30,43,"участник",null,"Макарова Эльвира Наилевна",{"$f":"list!$N$6","v":"Муниципальное бюджетное общеобразовательное учреждение \"Многопрофильный лицей №37\" Нижнекамского муниципального района Республики Татарстан"}]
[104,"Ахмадиева","Зиля","Рустемовна","ж","нет",7,7,30,43,"участник",null,"Макарова Эльвира Наилевна",{"$f":"list!$N$6","v":"Муниципальное бюджетное общеобразовательное учреждение \"Многопрофильный лицей №37\" Нижнекамского муниципального района Республики Татарстан"}]
[105,"Габдрахимова","Камилла ","Ильдаровна","ж","нет",7,7,28,43,"участник",null,"Макарова Эльвира Наилевна",{"$f":"list!$N$6","v":"Муниципальное бюджетное общеобразовательное учреждение \"Многопрофильный лицей №37\" Нижнекамского муниципального района Республики Татарстан"}]
[106,"Салахова","Азалия","Алмазовна","ж","нет",7,7,28,43,"участник",null,"Макарова Эльвира Наилевна",{"$f":"list!$N$6","v":"Муниципальное бюджетное общеобразовательное учреждение \"Многопрофильный лицей №37\" Нижнекамского муниципального района Республики Татарстан"}]
[107,"Бадретдинова","Алина","Руслановна","ж","нет",7,7,25,43,"участник",null,"Макарова Эльвира Наилевна",{"$f":"list!$N$6","v":"Муниципальное бюджетное общеобразовательное учреждение \"Многопрофильный лицей №37\" Нижнекамского муниципального района Республики Татарстан"}]
[108,"Гудкова","Маргарита","Игоревна","ж","нет",7,7,25,43,"участник",null,"Котляр Динара Дамировна",{"$f":"list!$N$6","v":"Муниципальное бюджетное общеобразовательное учреждение \"Многопрофильный лицей №37\" Нижнекамского муниципального района Республики Татарстан"}]
[109,"Дияров","Айзат","Маратович","м","нет",7,7,25,43,"участник",null,"Котляр Динара Дамировна",{"$f":"list!$N$6","v":"Муниципальное бюджетное общеобразовательное учреждение \"Многопрофильный лицей №37\" Нижнекамского муниципального района Республики Татарстан"}]
[110,"Измайлова","Диляра","Альбертовна","ж","нет",7,7,20,43,"участник",null,"Охотникова Анжела Евгеньевна",{"$f":"list!$N$6","v":"Муниципальное бюджетное общеобразовательное учреждение \"Многопрофильный лицей №37\" Нижнекамского муниципального района Республики Татарстан"}]
[111,"Каримов","ранис","Равилевич","м","нет",7,7,18,43,"участник",null,"Охотникова Анжела Евгеньевна",{"$f":"list!$N$6","v":"Муниципальное бюджетное общеобразовательное учреждение \"Многопрофильный лицей №37\" Нижнекамского муниципального района Республики Татарстан"}]
[112,"Сафин","Амир ","Ренатович","м","нет",7,7,13,43,"участник",null,"Охотникова Анжела Евгеньевна",{"$f":"list!$N$6","v":"Муниципальное бюджетное общеобразовательное учреждение \"Многопрофильный лицей №37\" Нижнекамского муниципального района Республики Татарстан"}]
[113,"Хамадвалиева","Ландыш","Зиннуровна","ж","нет",7,7,13,43,"участник",null,"Охотникова Анжела Евгеньевна",{"$f":"list!$N$6","v":"Муниципальное бюджетное общеобразовательное учреждение \"Многопрофильный лицей №37\" Нижнекамского муниципального района Республики Татарстан"}]
[114,"Быкова","Анастасия","Дмитриевна","ж","нет",7,7,13,43,"участник",null,"Охотникова Анжела Евгеньевна",{"$f":"list!$N$6","v":"Муниципальное бюджетное общеобразовательное учреждение \"Многопрофильный лицей №37\" Нижнекамского муниципального района Республики Татарстан"}]
[115,"Якупов","Тимур","Артёмович","м","нет",7,7,10,43,"участник",null,"Охотникова Анжела Евгеньевна","Муниципальное бюджетное общеобразовательное учреждение \"Многопрофильный лицей №37\" Нижнекамского муниципального района Республики Татарстан"]
[116,"Гришин","Егор","Максимович","м","нет",7,7,10,43,"участник",null,"Макарова Эльвира Наилевна",{"$f":"list!$N$6","v":"Муниципальное бюджетное общеобразовательное учреждение \"Многопрофильный лицей №37\" Нижнекамского муниципального района Республики Татарстан"}]
[117,"Юлмухаметов","Рамир","Рамилевич","м","нет",7,7,10,43,"участник",null,"Макарова Эльвира Наилевна",{"$f":"list!$N$6","v":"Муниципальное бюджетное общеобразовательное учреждение \"Многопрофильный лицей №37\" Нижнекамского муниципального района Республики Татарстан"}]
[118,"Гайдуллин","Ярослав","Владимирович","м","нет",8,8,39,43,"победитель",null,"Хазипова Ильмира Нургалиевна","Муниципальное бюджетное общеобразовательное учреждение \"Многопрофильный лицей №37\" Нижнекамского муниципального района Республики Татарстан"]
[119,"Козина","Анна","Алексеевна","ж","нет",8,8,35,43,"призер",null,"Хазипова Ильмира Нургалиевна","Муниципальное бюджетное общеобразовательное учреждение \"Многопрофильный лицей №37\" Нижнекамского муниципального района Республики Татарстан"]
[120,"Макарова","Евгения","Сергеевна","ж","нет",8,8,30,43,"участник",null,"Хазипова Ильмира Нургалиевна","Муниципальное бюджетное общеобразовательное учреждение \"Многопрофильный лицей №37\" Нижнекамского муниципального района Республики Татарстан"]
[121,"Шаяхметова","Дарина","Ильдаровна","ж","нет",8,8,12,43,"участник",null,"Хазипова Ильмира Нургалиевна","Муниципальное бюджетное общеобразовательное учреждение \"Многопрофильный лицей №37\" Нижнекамского муниципального района Республики Татарстан"]
[122,"Ульданов","Рафиль","Ниязович","м","нет",8,8,10,43,"участник",null,"Хазипова Ильмира Нургалиевна","Муниципальное бюджетное общеобразовательное учреждение \"Многопрофильный лицей №37\" Нижнекамского муниципального района Республики Татарстан"]
[123,"Амосов","Владислав","Алексеевич","м","нет",8,8,9,43,"участник",null,"Хазипова Ильмира Нургалиевна","Муниципальное бюджетное общеобразовательное учреждение \"Многопрофильный лицей №37\" Нижнекамского муниципального района Республики Татарстан"]
[124,"Муртазин","Адель","Ахтямович","м","нет",8,8,8,43,"участник",null,"Хазипова Ильмира Нургалиевна","Муниципальное бюджетное общеобразовательное учреждение \"Многопрофильный лицей №37\" Нижнекамского муниципального района Республики Татарстан"]
[125,"Щербенева","Варвара","Валерьевна","ж","нет",8,8,8,43,"участник",null,"Хазипова Ильмира Нургалиевна","Муниципальное бюджетное общеобразовательное учреждение \"Многопрофильный лицей №37\" Нижнекамского муниципального района Республики Татарстан"]
[126,"Ботнарь","Полина","Евгеньевна","ж","нет",8,8,6,43,"участник",null,"Хазипова Ильмира Нургалиевна","Муниципальное бюджетное общеобразовательное учреждение \"Многопрофильный лицей №37\" Нижнекамского муниципального района Республики Татарстан"]
[127,"Минахметов","Марат","Ибрагимович","м","нет",8,8,6,43,"участник",null,"Охотникова Анжела Евгеньевна","Муниципальное бюджетное общеобразовательное учреждение \"Многопрофильный лицей №37\" Нижнекамского муниципального района Республики Татарстан"]
[128,"Исаева","Яна","Сергеевна","ж","нет",8,8,6,43,"участник",null,"Хазипова Ильмира Нургалиевна","Муниципальное бюджетное общеобразовательное учреждение \"Многопрофильный лицей №37\" Нижнекамского муниципального района Республики Татарстан"]
[129,"Володина","Валерия","Сергеевна","ж","нет",8,8,6,43,"участник",null,"Хазипова Ильмира Нургалиевна","Муниципальное бюджетное общеобразовательное учреждение \"Многопрофильный лицей №37\" Нижнекамского муниципального района Республики Татарстан"]
[130,"Ильясова","Алина","Фанилевна","ж","нет",8,8,5,43,"участник",null,"Охотникова Анжела Евгеньевна","Муниципальное бюджетное общеобразовательное учреждение \"Многопрофильный лицей №37\" Нижнекамского муниципального района Республики Татарстан"]
[131,"Исхакова","Юлия","Федоровна","ж","нет",8,8,5,43,"участник",null,"Хазипова Ильмира Нургалиевна","Муниципальное бюджетное общеобразовательное учреждение \"Многопрофильный лицей №37\" Нижнекамского муниципального района Республики Татарстан"]
[132,"Анисимова","София","Игоревна","ж","нет",8,8,5,43,"участник",null,"Хазипова Ильмира Нургалиевна","Муниципальное бюджетное общеобразовательное учреждение \"Многопрофильный лицей №37\" Нижнекамского муниципального района Республики Татарстан"]
[133,"Гарипова","Эльвина","Ильдаровна","ж","нет",8,8,5,43,"участник",null,"Хазипова Ильмира Нургалиевна","Муниципальное бюджетное общеобразовательное учреждение \"Многопрофильный лицей №37\" Нижнекамского муниципального района Республики Татарстан"]
[134,"Фаттахова","Лейла","Ильшатовна","ж","нет",8,8,4,43,"участник",null,"Охотникова Анжела Евгеньевна","Муниципальное бюджетное общеобразовательное учреждение \"Многопрофильный лицей №37\" Нижнекамского муниципального района Республики Татарстан"]
[135,"Давлетшина","Диляра","Альбертовна","ж","нет",8,8,4,43,"участник",null,"Охотникова Анжела Евгеньевна","Муниципальное бюджетное общеобразовательное учреждение \"Многопрофильный лицей №37\" Нижнекамского муниципального района Республики Татарстан"]
[136,"Алиева","Айгуль","Айратовна","ж","нет",8,8,3,43,"участник",null,"Охотникова Анжела Евгеньевна","Муниципальное бюджетное общеобразовательное учреждение \"Многопрофильный лицей №37\" Нижнекамского муниципального района Республики Татарстан"]
[137,"Баширова","Эльвина","Ильназовна","ж","нет",8,8,3,43,"участник",null,"Хазипова Ильмира Нургалиевна","Муниципальное бюджетное общеобразовательное учреждение \"Многопрофильный лицей №37\" Нижнекамского муниципального района Республики Татарстан"]
[138,"Хузин","Риан","Робертович","м","нет",8,8,3,43,"участник",null,"Охотникова Анжела Евгеньевна","Муниципальное бюджетное общеобразовательное учреждение \"Многопрофильный лицей №37\" Нижнекамского муниципального района Республики Татарстан"]
[139,"Французов","Максим","Владимирович","м","нет",8,8,3,43,"участник",null,"Хазипова Ильмира Нургалиевна","Муниципальное бюджетное общеобразовательное учреждение \"Многопрофильный лицей №37\" Нижнекамского муниципального района Республики Татарстан"]
[140,"Гильманова","Самина","Рустемовна","ж","нет",8,8,2,43,"участник",null,"Охотникова Анжела Евгеньевна","Муниципальное бюджетное общеобразовательное учреждение \"Многопрофильный лицей №37\" Нижнекамского муниципального района Республики Татарстан"]
[141,"Талипов","Ильяс","Марсович","м","нет",8,8,2,43,"участник",null,"Хазипова Ильмира Нургалиевна","Муниципальное бюджетное общеобразовательное учреждение \"Многопрофильный лицей №37\" Нижнекамского муниципального района Республики Татарстан"]
[142,"Мубараков","Насим","Ильданович","м","нет",8,8,2,43,"участник",null,"Хазипова Ильмира Нургалиевна","Муниципальное бюджетное общеобразовательное учреждение \"Многопрофильный лицей №37\" Нижнекамского муниципального района Республики Татарстан"]
[143,"Галкина","Дарья","Александровна","ж","нет",8,8,0,43,"участник",null,"Хазипова Ильмира Нургалиевна","Муниципальное бюджетное общеобразовательное учреждение \"Многопрофильный лицей №37\" Нижнекамского муниципального района Республики Татарстан"]
[144,"Нургалеева","Амина","Линаровна","ж","нет",8,8,0,43,"участник",null,"Хазипова Ильмира Нургалиевна","Муниципальное бюджетное общеобразовательное учреждение \"Многопрофильный лицей №37\" Нижнекамского муниципального района Республики Татарстан"]
[145,"Крутикова","Елизавета","Александровна","ж","нет",9,9,44,52,"победитель",null,"Макарова Эльвира Наилевна","Муниципальное бюджетное общеобразовательное учреждение \"Многопрофильный лицей №37\" Нижнекамского муниципального района Республики Татарстан"]
[146,"Темиргазина","Динара","Данилевна","ж","нет",9,9,36,52,"призер",null,"Макарова Эльвира Наилевна","Муниципальное бюджетное общеобразовательное учреждение \"Многопрофильный лицей №37\" Нижнекамского муниципального района Республики Татарстан"]
[147,"Лаврентьева","Екатерина","Андреевна","ж","нет",9,9,32,52,"участник",null,"Хазипова Ильмира Нургалиевна","Муниципальное бюджетное общеобразовательное учреждение \"Многопрофильный лицей №37\" Нижнекамского муниципального района Республики Татарстан"]
[148,"Савельев","Иван","Игоревич","м","нет",9,9,28,52,"участник",null,"Макарова Эльвира Наилевна","Муниципальное бюджетное общеобразовательное учреждение \"Многопрофильный лицей №37\" Нижнекамского муниципального района Республики Татарстан"]
[149,"Никифорова ","Карина","Денисовна","ж","нет",9,9,28,52,"участник",null,"Макарова Эльвира Наилевна","Муниципальное бюджетное общеобразовательное учреждение \"Многопрофильный лицей №37\" Нижнекамского муниципального района Республики Татарстан"]
[150,"Милицкая","Валерия","Александровна","ж","нет",9,9,25,52,"участник",null,"Макарова Эльвира Наилевна","Муниципальное бюджетное общеобразовательное учреждение \"Многопрофильный лицей №37\" Нижнекамского муниципального района Республики Татарстан"]
[151,"Яфаров","Данил","Рафисович","м","нет",9,9,25,52,"участник",null,"Макарова Эльвира Наилевна","Муниципальное бюджетное общеобразовательное учреждение \"Многопрофильный лицей №37\" Нижнекамского муниципального района Республики Татарстан"]
[152,"Виноградова","Анастасия","Сергеевна","ж","нет",9,9,13,52,"участник",null,"Хазипова Ильмира Нургалиевна","Муниципальное бюджетное общеобразовательное учреждение \"Многопрофильный лицей №37\" Нижнекамского муниципального района Республики Татарстан"]
[153,"Кямякова","Камилла","Вагизовна","ж","нет",9,9,13,52,"участник",null,"Макарова Эльвира Наилевна","Муниципальное бюджетное общеобразовательное учреждение \"Многопрофильный лицей №37\" Нижнекамского муниципального района Республики Татарстан"]
[154,"Гайнутдинов ","Самат","Рустемович","м","нет",9,9,12,52,"участник",null,"Макарова Эльвира Наилевна","Муниципальное бюджетное общеобразовательное учреждение \"Многопрофильный лицей №37\" Нижнекамского муниципального района Республики Татарстан"]
[155,"Шихранова","Ульяна","Алексеевна","ж","нет",9,9,12,52,"участник",null,"Макарова Эльвира Наилевна","Муниципальное бюджетное общеобразовательное учреждение \"Многопрофильный лицей №37\" Нижнекамского муниципального района Республики Татарстан"]
[156,"Рахматуллина ","Лиана","Айратовна","ж","нет",9,9,11,52,"участник",null,"Хазипова Ильмира Нургалиевна","Муниципальное бюджетное общеобразовательное учреждение \"Многопрофильный лицей №37\" Нижнекамского муниципального района Республики Татарстан"]
[157,"Васильева ","Диана","Владимировна","ж","нет",9,9,10,52,"участник",null,"Хазипова Ильмира Нургалиевна","Муниципальное бюджетное общеобразовательное учреждение \"Многопрофильный лицей №37\" Нижнекамского муниципального района Республики Татарстан"]
[158,"Минвалеева","Алия","И льгамовна","ж","нет",9,9,10,52,"участник",null,"Макарова Эльвира Наилевна","Муниципальное бюджетное общеобразовательное учреждение \"Многопрофильный лицей №37\" Нижнекамского муниципального района Республики Татарстан"]
[159,"Сахабутдинова","Риана","Маратовна","ж","нет",9,9,9,52,"участник",null,"Макарова Эльвира Наилевна","Муниципальное бюджетное общеобразовательное учреждение \"Многопрофильный лицей №37\" Нижнекамского муниципального района Республики Татарстан"]
[160,"Меликян","Кира","Артуровна","ж","нет",9,9,9,52,"участник",null,"Макарова Эльвира Наилевна","Муниципальное бюджетное общеобразовательное учреждение \"Многопрофильный лицей №37\" Нижнекамского муниципального района Республики Татарстан"]
[161,"Мулюкова","Алия","Алмазовна","ж","нет",9,9,9,52,"участник",null,"Хазипова Ильмира Нургалиевна","Муниципальное бюджетное общеобразовательное учреждение \"Многопрофильный лицей №37\" Нижнекамского муниципального района Республики Татарстан"]
[162,"Павлов","Ярослав","Павлович","м","нет",9,9,9,52,"участник",null,"Макарова Эльвира Наилевна","Муниципальное бюджетное общеобразовательное учреждение \"Многопрофильный лицей №37\" Нижнекамского муниципального района Республики Татарстан"]
[163,"Бобровская","Алла","Спергеевна","ж","нет",9,9,5,52,"участник",null,"Макарова Эльвира Наилевна","Муниципальное бюджетное общеобразовательное учреждение \"Многопрофильный лицей №37\" Нижнекамского муниципального района Республики Татарстан"]
[164,"Габдрахимова","Илина","Ильдаровна","ж","нет",9,9,5,52,"участник",null,"Макарова Эльвира Наилевна","Муниципальное бюджетное общеобразовательное учреждение \"Многопрофильный лицей №37\" Нижнекамского муниципального района Республики Татарстан"]
[165,"Салахова","Камилла","Алмазовна","ж","нет",9,9,5,52,"участник",null,"Макарова Эльвира Наилевна","Муниципальное бюджетное общеобразовательное учреждение \"Многопрофильный лицей №37\" Нижнекамского муниципального района Республики Татарстан"]
[166,"Хуснутдинов","Айзат","Ильнарович","м","нет",9,9,4,52,"участник",null,"Хазипова Ильмира Нургалиевна","Муниципальное бюджетное общеобразовательное учреждение \"Многопрофильный лицей №37\" Нижнекамского муниципального района Республики Татарстан"]
[167,"Амирова","Амина","Руслановна","ж","нет",9,9,3,52,"участник",null,"Макарова Эльвира Наилевна","Муниципальное бюджетное общеобразовательное учреждение \"Многопрофильный лицей №37\" Нижнекамского муниципального района Республики Татарстан"]
[168,"Даутов","Булат","Романович","м","нет",9,9,2,52,"участник",null,"Хазипова Ильмира Нургалиевна","Муниципальное бюджетное общеобразовательное учреждение \"Многопрофильный лицей №37\" Нижнекамского муниципального района Республики Татарстан"]
[169,"Исакиева","Миланья","Юрьевна","ж","нет",11,11,48,64,"победитель",null,"Воловикова Татьяна Ивановна","Муниципальное бюджетное общеобразовательное учреждение \"Многопрофильный лицей №37\" Нижнекамского муниципального района Республики Татарстан"]
[170,"Миронова","Дарья","Александровна","ж","нет",11,11,46,64,"призер",null,"Воловикова Татьяна Ивановна","Муниципальное бюджетное общеобразовательное учреждение \"Многопрофильный лицей №37\" Нижнекамского муниципального района Республики Татарстан"]
[171,"Васильева","Дарья","Викторовна","ж","нет",11,11,45,64,"призер",null,"Воловикова Татьяна Ивановна","Муниципальное бюджетное общеобразовательное учреждение \"Многопрофильный лицей №37\" Нижнекамского муниципального района Республики Татарстан"]
[172,"Садыкова","Самира","Ренатовна","ж","нет",11,11,26,64,"участник",null,"Воловикова Татьяна Ивановна","Муниципальное бюджетное общеобразовательное учреждение \"Многопрофильный лицей №37\" Нижнекамского муниципального района Республики Татарстан"]
[173,"Фофанова","Юлия","Артемовна","ж","нет",11,11,24,64,"участник",null,"Воловикова Татьяна Ивановна","Муниципальное бюджетное общеобразовательное учреждение \"Многопрофильный лицей №37\" Нижнекамского муниципального района Республики Татарстан"]
[174,"Плеханов ","Олег","Владимирович","м","нет",11,11,23,64,"участник",null,"Воловикова Татьяна Ивановна","Муниципальное бюджетное общеобразовательное учреждение \"Многопрофильный лицей №37\" Нижнекамского муниципального района Республики Татарстан"]
[175,"Лебедева","Вероника","Андреевна","ж","нет",11,11,22,64,"участник",null,"Воловикова Татьяна Ивановна","Муниципальное бюджетное общеобразовательное учреждение \"Многопрофильный лицей №37\" Нижнекамского муниципального района Республики Татарстан"]
[176,"Перцева","Ксения","Александровна","ж","нет",11,11,19,64,"участник",null,"Воловикова Татьяна Ивановна","Муниципальное бюджетное общеобразовательное учреждение \"Многопрофильный лицей №37\" Нижнекамского муниципального района Республики Татарстан"]
[177,"Исхакова","Ева","Камилевна","ж","нет",11,11,17,64,"участник",null,"Воловикова Татьяна Ивановна","Муниципальное бюджетное общеобразовательное учреждение \"Многопрофильный лицей №37\" Нижнекамского муниципального района Республики Татарстан"]
[178,"Шарафиев ","Айнур","Назилевич","м","нет",11,11,1,64,"участник",null,"Воловикова Татьяна Ивановна","Муниципальное бюджетное общеобразовательное учреждение \"Многопрофильный лицей №37\" Нижнекамского муниципального района Республики Татарстан"]

{"sheet":"data","index":1,"n_rows":25,"n_cols":10,"rows_kept":25}
[{"$nulls":6},"1 - Техника, технология и техническое творчество","2 - Культура дома, дизайн и технологии","3 - Робототехника","4 - Информационная безопасность"]
["1 - Техника, технологии и техническое творчество","1.1  Практика по ручной деревообработке",{"$nulls":4},"1.1 Практика по ручной деревообработке","2.1 Ручная обработка швейного изделия или узла","3.1 Робототехника","4.1 Не предусмотрена"]
["2 - Культура дома, дизайн и технологии","1.2 Практика по механической деревообработке",{"$nulls":4},"1.2 Практика по механической деревообработке","2.2 Механическая обработка швейного изделия или узла + Моделирование"]
["3 - Робототехника","1.3 Практика по ручной металлообработке",{"$nulls":4},"1.3 Практика по ручной металлообработке","2.3 Обработка швейного изделия или узла на швейно-вышивальном оборудовании + Моделирование"]
["4 - Информационная безопасность","1.4 Практика по механической металлообработке",{"$nulls":4},"1.4 Практика по механической металлообработке","2.4 3D-моделирование и печать"]
[null,"1.5 Электрорадиотехника",{"$nulls":4},"1.5 Электрорадиотехника","2.5 Практика по работе на лазерно-гравировальном станке"]
[null,"1.6 3D-моделирование и печать",{"$nulls":4},"1.6 3D-моделирование и печать","2.6 Промышленный дизайн"]
[null,"1.7 Практика по работе на лазерно-гравировальном станке",{"$nulls":4},"1.7 Практика по работе на лазерно-гравировальном станке"]
[null,"1.8 Промышленный дизайн",{"$nulls":4},"1.8 Промышленный дизайн"]
[null,"2.1 Ручная обработка швейного изделия или узла"]
[null,"2.2 Механическая обработка швейного изделия или узла + Моделирование",{"$nulls":6},"3.1 Робототехника","4.1 Не предусмотрена"]
[null,"2.3 Обработка швейного изделия или узла на швейно-вышивальном оборудовании + Моделирование"]
[null,"2.4 3D-моделирование и печать"]
[null,"2.5 Практика по работе на лазерно-гравировальном станке"]
[null,"2.6 Промышленный дизайн"]
[null,"3.1 Робототехника"]
[null,"4.1 Не предусмотрена"]
[]
[]
[]
[]
[]
["участник"]
["призер",null,"да","да",null,"м"]
["победитель",null,null,"нет",null,"ж"]